Workbook

Sheet Wedding budget
B2: Wedding Budget
B3: Wedding Date: | D3: Days Remaining:
B4: =TODAY()+365 -> 2024-02-23 | D4: =B4-TODAY() -> 365
B5: CATEGORY | C5: ESTIMATED | D5: ACTUAL | E5: OVER/UNDER
B6: Apparel | C6: =Apparel_Total_est -> 9,490.00 | D6: =Apparel_Total_act -> 9,770.00 | E6: =BudgetSummary[[#This Row],[ESTIMATED]]-BudgetSummary[[#This Row],[ACTUAL]] -> -280.00
B7: Reception | C7: =Reception_Total_est -> 1,050.00 | D7: =Reception_Total_act -> 928.00 | E7: =BudgetSummary[[#This Row],[ESTIMATED]]-BudgetSummary[[#This Row],[ACTUAL]] -> 122.00
B8: Music | C8: =Music_Entertainment_Total_est -> 600.00 | D8: =Music_Entertainment_Total_act -> 400.00 | E8: =BudgetSummary[[#This Row],[ESTIMATED]]-BudgetSummary[[#This Row],[ACTUAL]] -> 200.00
B9: Printing | C9: =Printing__Stationery_Total_est -> 935.00 | D9: =Printing__Stationery_Total_act -> 870.00 | E9: =BudgetSummary[[#This Row],[ESTIMATED]]-BudgetSummary[[#This Row],[ACTUAL]] -> 65.00
B10: Photography | C10: =Photography_Total_est -> 1,625.00 | D10: =Photography_Total_act -> 1,575.00 | E10: =BudgetSummary[[#This Row],[ESTIMATED]]-BudgetSummary[[#This Row],[ACTUAL]] -> 50.00
B11: Decorations | C11: =Decorations_Total_est -> 700.00 | D11: =Decorations_Total_act -> 720.00 | E11: =BudgetSummary[[#This Row],[ESTIMATED]]-BudgetSummary[[#This Row],[ACTUAL]] -> -20.00
B12: Flowers | C12: =Flowers_Total_est -> 900.00 | D12: =Flowers_Total_act -> 850.00 | E12: =BudgetSummary[[#This Row],[ESTIMATED]]-BudgetSummary[[#This Row],[ACTUAL]] -> 50.00
B13: Gifts | C13: =Gifts_Total_est -> 1,345.00 | D13: =Gifts_Total_act -> 1,075.00 | E13: =BudgetSummary[[#This Row],[ESTIMATED]]-BudgetSummary[[#This Row],[ACTUAL]] -> 270.00
B14: Travel | C14: =Travel_Transportation_Total_est -> 100.00 | D14: =Travel_Transportation_Total_act -> 165.00 | E14: =BudgetSummary[[#This Row],[ESTIMATED]]-BudgetSummary[[#This Row],[ACTUAL]] -> -65.00
B15: Other | C15: =Other_Expenses_Total_est -> 885.00 | D15: =Other_Expenses_Total_act -> 1,021.00 | E15: =BudgetSummary[[#This Row],[ESTIMATED]]-BudgetSummary[[#This Row],[ACTUAL]] -> -136.00
B16: Total expenses | C16: =SUBTOTAL(109,BudgetSummary[ESTIMATED]) -> 17,630.00 | D16: =SUBTOTAL(109,BudgetSummary[ACTUAL]) -> 17,374.00 | E16: =SUBTOTAL(109,BudgetSummary[OVER/UNDER]) -> 256.00

Sheet Expenses
B2: Expenses
B3: APPAREL
B4: CATEGORY | C4: ESTIMATED | D4: ACTUAL | E4: OVER/UNDER
B5: Engagement ring(s) | C5: 1,500.00 | D5: 1,500.00 | E5: =Expenses!$C5-Expenses!$D5 -> 0.00
B6: Spouse-to-be 1 ring | C6: 2,000.00 | D6: 2,300.00 | E6: =Expenses!$C6-Expenses!$D6 -> (300.00)
B7: Spouse-to-be 1 gown/tuxedo | C7: 3,000.00 | D7: 2,750.00 | E7: =Expenses!$C7-Expenses!$D7 -> 250.00
B8: Spouse-to-be 1 veil/headpiece | C8: 500.00 | D8: 500.00 | E8: =Expenses!$C8-Expenses!$D8 -> 0.00
B9: Spouse-to-be 1 shoes | C9: 350.00 | D9: 300.00 | E9: =Expenses!$C9-Expenses!$D9 -> 50.00
B10: Spouse-to-be 1 jewelry | C10: 400.00 | D10: 550.00 | E10: =Expenses!$C10-Expenses!$D10 -> (150.00)
B11: Spouse-to-be 1 hosiery | C11: 20.00 | D11: 20.00 | E11: =Expenses!$C11-Expenses!$D11 -> 0.00
B12: Spouse-to-be 2 ring | C12: 300.00 | D12: 250.00 | E12: =Expenses!$C12-Expenses!$D12 -> 50.00
B13: Spouse-to-be 2 gown/tuxedo | C13: 300.00 | D13: 350.00 | E13: =Expenses!$C13-Expenses!$D13 -> (50.00)
B14: Spouse-to-be 2 veil/headpiece | C14: 500.00 | D14: 500.00 | E14: =Expenses!$C14-Expenses!$D14 -> 0.00
B15: Spouse-to-be 2 shoes | C15: 200.00 | D15: 175.00 | E15: =Expenses!$C15-Expenses!$D15 -> 25.00
B16: Spouse-to-be 2 jewelry | C16: 400.00 | D16: 550.00 | E16: =Expenses!$C16-Expenses!$D16 -> (150.00)
B17: Spouse-to-be 2 hosiery | C17: 20.00 | D17: 25.00 | E17: =Expenses!$C17-Expenses!$D17 -> (5.00)
B18: Apparel total | C18: =SUBTOTAL(109,Apparel[ESTIMATED]) -> 9,490.00 | D18: =SUBTOTAL(109,Apparel[ACTUAL]) -> 9,770.00 | E18: =SUBTOTAL(109,Apparel[OVER/UNDER]) -> (280.00)
B19: RECEPTION*
B20: CATEGORY | C20: ESTIMATED | D20: ACTUAL | E20: OVER/UNDER
B21: Room/hall fees | C21: 200.00 | D21: 150.00 | E21: =Expenses!$C21-Expenses!$D21 -> 50.00
B22: Tables and chairs | C22: 100.00 | D22: 50.00 | E22: =Expenses!$C22-Expenses!$D22 -> 50.00
B23: Food | C23: 0.00 | D23: 0.00 | E23: =Expenses!$C23-Expenses!$D23 -> 0.00
B24: Drinks | C24: 0.00 | D24: 0.00 | E24: =Expenses!$C24-Expenses!$D24 -> 0.00
B25: Linens | C25: 0.00 | D25: 0.00 | E25: =Expenses!$C25-Expenses!$D25 -> 0.00
B26: Cake | C26: 700.00 | D26: 700.00 | E26: =Expenses!$C26-Expenses!$D26 -> 0.00
B27: Favors | C27: 50.00 | D27: 28.00 | E27: =Expenses!$C27-Expenses!$D27 -> 22.00
B28: Staff and gratuities | C28: 0.00 | D28: 0.00 | E28: =Expenses!$C28-Expenses!$D28 -> 0.00
B29: Reception total | C29: =SUBTOTAL(109,Reception[ESTIMATED]) -> 1,050.00 | D29: =SUBTOTAL(109,Reception[ACTUAL]) -> 928.00 | E29: =SUBTOTAL(109,Reception[OVER/UNDER]) -> 122.00
B30: * Excludes entertainment and decorations
B31: MUSIC/ENTERTAINMENT
B32: CATEGORY | C32: ESTIMATED | D32: ACTUAL | E32: OVER/UNDER
B33: Musicians for ceremony | C33: 400.00 | D33: 400.00 | E33: =Expenses!$C33-Expenses!$D33 -> 0.00
B34: Band/DJ for reception | C34: 200.00 | D34: 0.00 | E34: =Expenses!$C34-Expenses!$D34 -> 200.00
B35: Music/entertainment total | C35: =SUBTOTAL(109,Music[ESTIMATED]) -> 600.00 | D35: =SUBTOTAL(109,Music[ACTUAL]) -> 400.00 | E35: =SUBTOTAL(109,Music[OVER/UNDER]) -> 200.00
B36: PAINTING/STATIONERY
B37: CATEGORY | C37: ESTIMATED | D37: ACTUAL | E37: OVER/UNDER
B38: Invitations | C38: 500.00 | D38: 450.00 | E38: =Expenses!$C38-Expenses!$D38 -> 50.00
B39: Announcements | C39: 200.00 | D39: 175.00 | E39: =Expenses!$C39-Expenses!$D39 -> 25.00
B40: Thank-You cards | C40: 100.00 | D40: 100.00 | E40: =Expenses!$C40-Expenses!$D40 -> 0.00
B41: Personal stationery | C41: 0.00 | D41: 0.00 | E41: =Expenses!$C41-Expenses!$D41 -> 0.00
B42: Guest book | C42: 25.00 | D42: 25.00 | E42: =Expenses!$C42-Expenses!$D42 -> 0.00
B43: Programs | C43: 75.00 | D43: 80.00 | E43: =Expenses!$C43-Expenses!$D43 -> (5.00)
B44: Reception napkins | C44: 35.00 | D44: 40.00 | E44: =Expenses!$C44-Expenses!$D44 -> (5.00)
B45: Matchbooks | C45: 0.00 | D45: 0.00 | E45: =Expenses!$C45-Expenses!$D45 -> 0.00
B46: Calligraphy | C46: 0.00 | D46: 0.00 | E46: =Expenses!$C46-Expenses!$D46 -> 0.00
B47: Printing /stationery total | C47: =SUBTOTAL(109,Printing[ESTIMATED]) -> 935.00 | D47: =SUBTOTAL(109,Printing[ACTUAL]) -> 870.00 | E47: =SUBTOTAL(109,Printing[OVER/UNDER]) -> 65.00
B48: PHOTOGRAPHY
B49: CATEGORY | C49: ESTIMATED | D49: ACTUAL | E49: OVER/UNDER
B50: Formals | C50: 1,300.00 | D50: 1,300.00 | E50: =Expenses!$C50-Expenses!$D50 -> 0.00
B51: Extra prints | C51: 25.00 | D51: 25.00 | E51: =Expenses!$C51-Expenses!$D51 -> 0.00
B52: Photo albums | C52: 100.00 | D52: 100.00 | E52: =Expenses!$C52-Expenses!$D52 -> 0.00
B53: Videography | C53: 200.00 | D53: 150.00 | E53: =Expenses!$C53-Expenses!$D53 -> 50.00
B54: Photography total | C54: =SUBTOTAL(109,Photography[ESTIMATED]) -> 1,625.00 | D54: =SUBTOTAL(109,Photography[ACTUAL]) -> 1,575.00 | E54: =SUBTOTAL(109,Photography[OVER/UNDER]) -> 50.00
B55: DECORATIONS*
B56: CATEGORY | C56: ESTIMATED | D56: ACTUAL | E56: OVER/UNDER
B57: Bows for seating | C57: 0.00 | D57: 0.00 | E57: =Expenses!$C57-Expenses!$D57 -> 0.00
B58: Centerpieces | C58: 300.00 | D58: 320.00 | E58: =Expenses!$C58-Expenses!$D58 -> (20.00)
B59: Candles | C59: 100.00 | D59: 75.00 | E59: =Expenses!$C59-Expenses!$D59 -> 25.00
B60: Lighting | C60: 100.00 | D60: 75.00 | E60: =Expenses!$C60-Expenses!$D60 -> 25.00
B61: Balloons | C61: 200.00 | D61: 250.00 | E61: =Expenses!$C61-Expenses!$D61 -> (50.00)
B62: Decorations total | C62: =SUBTOTAL(109,Decorations[ESTIMATED]) -> 700.00 | D62: =SUBTOTAL(109,Decorations[ACTUAL]) -> 720.00 | E62: =SUBTOTAL(109,Decorations[OVER/UNDER]) -> (20.00)
B63: *Excludes flowers
B64: FLOWERS
B65: CATEGORY | C65: ESTIMATED | D65: ACTUAL | E65: OVER/UNDER
B66: Bouquets | C66: 500.00 | D66: 450.00 | E66: =Expenses!$C66-Expenses!$D66 -> 50.00
B67: Boutonnières | C67: 0.00 | D67: 0.00 | E67: =Expenses!$C67-Expenses!$D67 -> 0.00
B68: Corsages | C68: 0.00 | D68: 0.00 | E68: =Expenses!$C68-Expenses!$D68 -> 0.00
B69: Ceremony | C69: 400.00 | D69: 400.00 | E69: =Expenses!$C69-Expenses!$D69 -> 0.00
B70: Reception | C70: 0.00 | D70: 0.00 | E70: =Expenses!$C70-Expenses!$D70 -> 0.00
B71: Flowers total | C71: =SUBTOTAL(109,Flowers[ESTIMATED]) -> 900.00 | D71: =SUBTOTAL(109,Flowers[ACTUAL]) -> 850.00 | E71: =SUBTOTAL(109,Flowers[OVER/UNDER]) -> 50.00
B72: GIFTS
B73: CATEGORY | C73: ESTIMATED | D73: ACTUAL | E73: OVER/UNDER
B74: Attendants | C74: 1,000.00 | D74: 400.00 | E74: =Expenses!$C74-Expenses!$D74 -> 600.00
B75: Spouse-to-be 1 | C75: 150.00 | D75: 200.00 | E75: =Expenses!$C75-Expenses!$D75 -> (50.00)
B76: Spouse-to-be 2 | C76: 150.00 | D76: 200.00 | E76: =Expenses!$C76-Expenses!$D76 -> (50.00)
B77: Parents | C77: 25.00 | D77: 25.00 | E77: =Expenses!$C77-Expenses!$D77 -> 0.00
B78: Readers/other participants | C78: 20.00 | D78: 250.00 | E78: =Expenses!$C78-Expenses!$D78 -> (230.00)
B79: Gifts total | C79: =SUBTOTAL(109,Gifts[ESTIMATED]) -> 1,345.00 | D79: =SUBTOTAL(109,Gifts[ACTUAL]) -> 1,075.00 | E79: =SUBTOTAL(109,Gifts[OVER/UNDER]) -> 270.00
B80: TRAVEL/TRANSPORTATION
B81: CATEGORY | C81: ESTIMATED | D81: ACTUAL | E81: OVER/UNDER
B82: Limousines/trolleys | C82: 100.00 | D82: 125.00 | E82: =Expenses!$C82-Expenses!$D82 -> (25.00)
B83: Parking | C83: 0.00 | D83: 40.00 | E83: =Expenses!$C83-Expenses!$D83 -> (40.00)
B84: Taxis | C84: 0.00 | D84: 0.00 | E84: =Expenses!$C84-Expenses!$D84 -> 0.00
B85: Travel/transportation total | C85: =SUBTOTAL(109,Travel[ESTIMATED]) -> 100.00 | D85: =SUBTOTAL(109,Travel[ACTUAL]) -> 165.00 | E85: =SUBTOTAL(109,Travel[OVER/UNDER]) -> (65.00)
B86: OTHER EXPENSES
B87: CATEGORY | C87: ESTIMATED | D87: ACTUAL | E87: OVER/UNDER
B88: Officiant | C88: 0.00 | D88: 0.00 | E88: =Expenses!$C88-Expenses!$D88 -> 0.00
B89: Church/ceremony site fee | C89: 40.00 | D89: 55.00 | E89: =Expenses!$C89-Expenses!$D89 -> (15.00)
B90: Wedding coordinator | C90: 0.00 | D90: 0.00 | E90: =Expenses!$C90-Expenses!$D90 -> 0.00
B91: Rehearsal dinner | C91: 450.00 | D91: 450.00 | E91: =Expenses!$C91-Expenses!$D91 -> 0.00
B92: Engagement party | C92: 20.00 | D92: 50.00 | E92: =Expenses!$C92-Expenses!$D92 -> (30.00)
B93: Showers | C93: 30.00 | D93: 20.00 | E93: =Expenses!$C93-Expenses!$D93 -> 10.00
B94: Salon appointments | C94: 45.00 | D94: 46.00 | E94: =Expenses!$C94-Expenses!$D94 -> (1.00)
B95: Bachelor/ette parties | C95: 0.00 | D95: 0.00 | E95: =Expenses!$C95-Expenses!$D95 -> 0.00
B96: Brunch | C96: 300.00 | D96: 400.00 | E96: =Expenses!$C96-Expenses!$D96 -> (100.00)
B97: Hotel rooms | C97: 0.00 | D97: 0.00 | E97: =Expenses!$C97-Expenses!$D97 -> 0.00
B98: Other expenses total | C98: =SUBTOTAL(109,OtherExpenses[ESTIMATED]) -> 885.00 | D98: =SUBTOTAL(109,OtherExpenses[ACTUAL]) -> 1,021.00 | E98: =SUBTOTAL(109,OtherExpenses[OVER/UNDER]) -> (136.00)
